fUSD/lending_fUSD_20241127
["ID","MTS","AMOUNT","RATE_DAILY","PERIOD"]
[343617079,1732750236318,-500.0,9.999e-05,2]
[343617080,1732750236328,-500.0,9.999e-05,2]
[343617081,1732750236337,-335.24,9.999e-05,2]
[343617082,1732750236346,-500.0,9.999e-05,2]
[343617083,1732750236356,-500.0,9.999e-05,2]
[343617084,1732750236367,-533.79,9.999e-05,2]
[343617085,1732750236377,-537.34,9.999e-05,2]
[343617086,1732750236386,-500.0,9.999e-05,2]
[343617087,1732750236396,-500.0,9.999e-05,2]
[343617088,1732750236405,-500.0,9.999e-05,2]
[343617089,1732750236414,-500.0,9.999e-05,2]
[343617090,1732750236424,-500.0,9.999e-05,2]
[343617091,1732750236433,-422.06,9.999e-05,2]
[343617092,1732750236442,-559.09,9.999e-05,2]
[343617093,1732750236451,-500.0,9.999e-05,2]
[343617094,1732750236461,-500.0,9.999e-05,2]
[343617095,1732750236470,-500.0,9.999e-05,2]
[343617096,1732750236479,-500.0,9.999e-05,2]
[343617097,1732750236488,-500.0,9.999e-05,2]
[343617098,1732750236497,-500.0,9.999e-05,2]
[343617099,1732750236506,-500.0,9.999e-05,2]
[343617100,1732750236515,-500.0,9.999e-05,2]
[343617101,1732750236524,-620.38585927,9.999e-05,2]
[343617102,1732750236534,-500.0,9.999e-05,2]
[343617103,1732750236543,-500.0,9.999e-05,2]
[343617104,1732750236552,-500.0,9.999e-05,2]
[343617105,1732750236566,-500.0,9.999e-05,2]
[343617106,1732750236575,-500.0,9.999e-05,2]
[343617107,1732750236585,-500.0,9.999e-05,2]
[343617108,1732750236594,-500.0,9.999e-05,2]
[343617109,1732750236603,-500.0,9.999e-05,2]
[343617110,1732750236612,-500.0,9.999e-05,2]
[343617111,1732750236622,-500.0,9.999e-05,2]
[343617112,1732750236631,-500.0,9.999e-05,2]
[343617113,1732750236640,-500.0,9.999e-05,2]
[343617114,1732750236650,-500.0,9.999e-05,2]
[343617115,1732750236659,-500.0,9.999e-05,2]
[343617116,1732750236668,-500.0,9.999e-05,2]
[343617117,1732750236677,-336.41,9.999e-05,2]
[343617118,1732750236686,-648.22,9.999e-05,2]
[343617119,1732750236697,-500.0,9.999e-05,2]
[343617120,1732750236706,-500.0,9.999e-05,2]
[343617121,1732750236716,-500.0,9.999e-05,2]
[343617122,1732750236726,-500.0,9.999e-05,2]
[343617123,1732750236735,-500.0,9.999e-05,2]
[343617124,1732750236745,-527.79,9.999e-05,2]
[343617125,1732750236755,-500.0,9.999e-05,2]
[343617126,1732750236765,-500.0,9.999e-05,2]
[343617127,1732750236776,-500.0,9.999e-05,2]
[343617128,1732750236786,-463.67,9.999e-05,2]
[343617129,1732750236796,-500.0,9.999e-05,2]
[343617130,1732750236809,-461.18400668,9.999e-05,2]
[343617131,1732750236818,-500.0,9.999e-05,2]
[343617132,1732750236827,-500.0,9.999e-05,2]
[343617133,1732750236837,-500.0,9.999e-05,2]
[343617134,1732750236846,-500.0,9.999e-05,2]
[343617135,1732750236855,-500.0,9.999e-05,2]
[343617136,1732750236864,-500.0,9.999e-05,2]
[343617137,1732750236873,-500.0,9.999e-05,2]
[343617138,1732750236882,-500.0,9.999e-05,2]
[343617139,1732750236891,-500.0,9.999e-05,2]
[343617140,1732750236900,-500.0,9.999e-05,2]
[343617141,1732750236909,-500.0,9.999e-05,2]
[343617142,1732750236918,-500.0,9.999e-05,2]
[343617143,1732750236927,-319.0,9.999e-05,2]
[343617144,1732750236935,-500.0,9.999e-05,2]
[343617145,1732750236944,-500.0,9.999e-05,2]
[343617146,1732750236955,-500.0,9.999e-05,2]
[343617147,1732750236964,-500.0,9.999e-05,2]
[343617148,1732750236973,-601.09,9.999e-05,2]
[343617149,1732750236982,-500.0,9.999e-05,2]
[343617150,1732750236991,-500.0,9.999e-05,2]
[343617151,1732750237000,-500.0,9.999e-05,2]
[343617152,1732750237009,-500.0,9.999e-05,2]
[343617153,1732750237018,-500.0,9.999e-05,2]
[343617154,1732750237027,-595.79,9.999e-05,2]
[343617155,1732750237036,-500.0,9.999e-05,2]
[343617156,1732750237044,-500.0,9.999e-05,2]
[343617157,1732750237055,-500.0,9.999e-05,2]
[343617158,1732750237065,-500.0,9.999e-05,2]
[343617159,1732750237077,-500.0,9.999e-05,2]
[343617160,1732750237088,-500.0,9.999e-05,2]
[343617161,1732750237097,-500.0,9.999e-05,2]
[343617162,1732750237108,-500.0,9.999e-05,2]
[343617163,1732750237119,-500.0,9.999e-05,2]
[343617164,1732750237128,-500.0,9.999e-05,2]
[343617165,1732750237137,-500.0,9.999e-05,2]
[343617166,1732750237147,-500.0,9.999e-05,2]
[343617167,1732750237157,-500.0,9.999e-05,2]
[343617168,1732750237166,-500.0,9.999e-05,2]
[343617169,1732750237175,-500.0,9.999e-05,2]
[343617170,1732750237184,-500.0,9.999e-05,2]
[343617171,1732750237193,-500.0,9.999e-05,2]
[343617172,1732750237202,-500.0,9.999e-05,2]
[343617173,1732750237211,-500.0,9.999e-05,2]
[343617174,1732750237220,-500.0,9.999e-05,2]
[343617175,1732750237229,-500.0,9.999e-05,2]
[343617176,1732750237239,-500.0,9.999e-05,2]
[343617177,1732750237248,-554.79,9.999e-05,2]
[343617178,1732750237257,-500.0,9.999e-05,2]
[343617179,1732750237266,-189.69,9.999e-05,2]
[343617180,1732750237275,-500.0,9.999e-05,2]
[343617181,1732750237285,-500.0,9.999e-05,2]
[343617182,1732750237294,-610.7,9.999e-05,2]
[343617183,1732750237303,-500.0,9.999e-05,2]
[343617184,1732750237314,-223.28,9.999e-05,2]
[343617185,1732750237323,-500.0,9.999e-05,2]
[343617186,1732750237332,-273.69,9.999e-05,2]
[343617187,1732750237342,-500.0,9.999e-05,2]
[343617188,1732750237351,-543.93,9.999e-05,2]
[343617189,1732750237360,-500.0,9.999e-05,2]
[343617190,1732750237370,-500.0,9.999e-05,2]
[343617191,1732750237379,-507.4,9.999e-05,2]
[343617192,1732750237388,-500.0,9.999e-05,2]
[343617193,1732750237397,-500.0,9.999e-05,2]
[343617194,1732750237408,-500.0,9.999e-05,2]
[343617195,1732750237420,-500.0,9.999e-05,2]
[343617196,1732750237429,-500.0,9.999e-05,2]
[343617197,1732750237443,-500.0,9.999e-05,2]
[343617198,1732750237452,-500.0,9.999e-05,2]
[343617199,1732750237462,-500.0,9.999e-05,2]
[343617200,1732750237471,-182.57451703,9.999e-05,2]
[343617201,1732750237481,-500.0,9.999e-05,2]
[343617202,1732750237490,-500.0,9.999e-05,2]
[343617203,1732750237499,-606.27,9.999e-05,2]
[343617204,1732750237509,-500.0,9.999e-05,2]
[343617205,1732750237518,-500.0,9.999e-05,2]
[343617206,1732750237527,-500.0,9.999e-05,2]
[343617207,1732750237537,-220.4,9.999e-05,2]
[343617208,1732750237546,-173.7,9.999e-05,2]
[343617209,1732750237557,-500.0,9.999e-05,2]
[343617210,1732750237566,-500.0,9.999e-05,2]
[343617211,1732750237575,-202.87,9.999e-05,2]
[343617212,1732750237585,-508.18,9.999e-05,2]
[343617213,1732750237594,-500.0,9.999e-05,2]
[343617214,1732750237603,-500.0,9.999e-05,2]
[343617215,1732750237613,-460.61215948,9.999e-05,2]
[343617216,1732750237622,-500.0,9.999e-05,2]
[343617217,1732750237631,-500.0,9.999e-05,2]
[343617218,1732750237640,-500.0,9.999e-05,2]
[343617219,1732750237649,-297.53,9.999e-05,2]
[343617220,1732750237659,-500.0,9.999e-05,2]
[343617221,1732750237668,-500.0,9.999e-05,2]
[343617222,1732750237679,-500.0,9.999e-05,2]
[343617223,1732750237688,-500.0,9.999e-05,2]
[343617224,1732750237698,-500.0,9.999e-05,2]
[343617225,1732750237710,-500.0,9.999e-05,2]
[343617226,1732750237720,-500.0,9.999e-05,2]
[343617227,1732750237730,-500.0,9.999e-05,2]
[343617228,1732750237740,-500.0,9.999e-05,2]
[343617229,1732750237749,-500.0,9.999e-05,2]
[343617230,1732750237758,-500.0,9.999e-05,2]
[343617231,1732750237767,-500.0,9.999e-05,2]
[343617232,1732750237776,-500.0,9.999e-05,2]
[343617233,1732750237785,-500.0,9.999e-05,2]
[343617234,1732750237795,-500.0,9.999e-05,2]
[343617235,1732750237806,-378.95,9.999e-05,2]
[343617236,1732750237815,-500.0,9.999e-05,2]
[343617237,1732750237824,-500.0,9.999e-05,2]
[343617238,1732750237833,-500.0,9.999e-05,2]
[343617240,1732750237843,-500.0,9.999e-05,2]
[343617242,1732750237855,-500.0,9.999e-05,2]
[343617243,1732750237865,-500.0,9.999e-05,2]
[343617245,1732750237874,-500.0,9.999e-05,2]
[343617247,1732750237883,-491.74578092,9.999e-05,2]
[343617265,1732750238181,-8.25421908,9.999e-05,2]
[343617266,1732750238190,-526.68,9.999e-05,2]
[343617267,1732750238199,-229.31,9.999e-05,2]
[343617268,1732750238208,-500.0,9.999e-05,2]
[343617269,1732750238217,-3790.50627868,9.999e-05,2]
[343617270,1732750238226,-500.0,9.999e-05,2]
[343617271,1732750238235,-500.0,9.999e-05,2]
[343617272,1732750238244,-500.0,9.999e-05,2]
[343617273,1732750238254,-500.0,9.999e-05,2]
[343617274,1732750238264,-643.25,9.999e-05,2]
[343617275,1732750238273,-637.77,9.999e-05,2]
[343617276,1732750238283,-404.67136832,9.999e-05,2]
[343617277,1732750238295,-233.09863168,9.999e-05,2]
[343617278,1732750238306,-637.77,9.999e-05,2]
[343617279,1732750238315,-637.77,9.999e-05,2]
[343617280,1732750238324,-637.77,9.999e-05,2]
[343617281,1732750238335,-637.77,9.999e-05,2]
[343617282,1732750238345,-637.77,9.999e-05,2]
[343617283,1732750238354,-637.77,9.999e-05,2]
[343617284,1732750238364,-637.77,9.999e-05,2]
[343617285,1732750238375,-637.77,9.999e-05,2]
[343617286,1732750238385,-637.77,9.999e-05,2]
[343617287,1732750238395,-637.77,9.999e-05,2]
[343617288,1732750238405,-637.77,9.999e-05,2]
[343617289,1732750238414,-555.81,9.999e-05,2]
[343617290,1732750238424,-637.77,9.999e-05,2]
[343617291,1732750238434,-637.77,9.999e-05,2]
[343617292,1732750238443,-637.77,9.999e-05,2]
[343617293,1732750238452,-637.77,9.999e-05,2]
[343617294,1732750238461,-637.77,9.999e-05,2]
[343617295,1732750238471,-500.0,9.999e-05,2]
[343617296,1732750238480,-500.0,9.999e-05,2]
[343617297,1732750238490,-637.77,9.999e-05,2]
[343617298,1732750238500,-500.0,9.999e-05,2]
[343617299,1732750238509,-637.77,9.999e-05,2]
[343617300,1732750238518,-500.0,9.999e-05,2]
[343617301,1732750238527,-637.77,9.999e-05,2]
[343617302,1732750238537,-586.24,9.999e-05,2]
[343617303,1732750238547,-637.77,9.999e-05,2]
[343617304,1732750238562,-638.0,9.999e-05,2]
[343617305,1732750238572,-1906.74,9.999e-05,2]
[343617306,1732750238583,-1906.74,9.999e-05,2]
[343617307,1732750238593,-1906.74,9.999e-05,2]
[343617308,1732750238602,-1906.74,9.999e-05,2]
[343617309,1732750238612,-500.0,9.999e-05,2]
[343617310,1732750238621,-500.0,9.999e-05,2]
[343617311,1732750238630,-500.0,9.999e-05,2]
[343617312,1732750238639,-1906.74,9.999e-05,2]
[343617313,1732750238647,-574.01,9.999e-05,2]
[343617314,1732750238657,-500.0,9.999e-05,2]
[343617315,1732750238665,-1906.74,9.999e-05,2]
[343617316,1732750238675,-500.0,9.999e-05,2]
[343617317,1732750238684,-1323.58059672,9.999e-05,2]
[343617318,1732750238703,-289.4355,9.999e-05,2]
[343617319,1732750238729,-293.72390328,9.999e-05,2]
[343617320,1732750238738,-82.13789986,9.999e-05,2]
[343617333,1732750239364,-633.0,9.998e-05,2]
[343617334,1732750239374,-417.86210014,9.999e-05,2]
[343617335,1732750239383,-356.96375295,9.999e-05,2]
[343617336,1732750239395,-1549.77624705,9.999e-05,2]
[343617337,1732750239404,-500.0,9.999e-05,2]
[343617338,1732750239413,-1232.51499622,9.999e-05,2]
[343617339,1732750239424,-674.22500378,9.999e-05,2]
[343617340,1732750239434,-192.79322015,9.999e-05,2]
[343617341,1732750239445,-392.31677985,9.999e-05,2]
[343617342,1732750239456,-246.64020728,9.999e-05,2]
[343617346,1732750240171,-1660.09979272,9.999e-05,2]
[343617347,1732750240180,-1906.74,9.999e-05,2]
[343617348,1732750240191,-1906.74,9.999e-05,2]
[343617349,1732750240201,-1906.74,9.999e-05,2]
[343617350,1732750240212,-1906.74,9.999e-05,2]
[343617351,1732750240222,-149.86703357,9.999e-05,2]
[343617352,1732750240235,-1756.87296643,9.999e-05,2]
[343617353,1732750240246,-163.25229687,9.999e-05,2]
[343617356,1732750243815,-21.86799493,9.973e-05,2]
[343617357,1732750243826,-478.13200507,9.973e-05,2]
[343617358,1732750243835,-1170.52775541,9.998e-05,2]
[343617359,1732750243944,-1385.44536,9.998e-05,2]
[343617360,1732750244088,-11132.02688459,9.998e-05,2]
[343617361,1732750244099,-1743.48770313,9.999e-05,2]
[343617362,1732750244108,-1906.74,9.999e-05,2]
[343617363,1732750244119,-1906.74,9.999e-05,2]
[343617364,1732750244128,-1906.74,9.999e-05,2]
[343617366,1732750244138,-1906.74,9.999e-05,2]
[343617367,1732750244150,-1906.74,9.999e-05,2]
[343617368,1732750244159,-1906.74,9.999e-05,2]
[343617369,1732750244169,-1906.89170847,9.999e-05,2]
[343617370,1732750244178,-500.0,9.999e-05,2]
[343617371,1732750244187,-500.0,9.999e-05,2]
[343617372,1732750244195,-500.0,9.999e-05,2]
[343617373,1732750244204,-500.0,9.999e-05,2]
[343617374,1732750244214,-500.0,9.999e-05,2]
[343617375,1732750244222,-500.0,9.999e-05,2]
[343617376,1732750244232,-500.0,9.999e-05,2]
[343617377,1732750244244,-460.4,9.999e-05,2]
[343617378,1732750244254,-535.83,9.999e-05,2]
[343617379,1732750244263,-444.83410382,9.999e-05,2]
[343617392,1732750246084,-55.16589618,9.999e-05,2]
[343617393,1732750246093,-292.38,9.999e-05,2]
[343617394,1732750246102,-35.96273652,9.999e-05,2]
[343617395,1732750246127,-464.03726348,9.999e-05,2]
[343617396,1732750246136,-76.56944726,9.999e-05,2]
[343617397,1732750246174,-423.43055274,9.999e-05,2]
[343617398,1732750246184,-500.0,9.999e-05,2]
[343617399,1732750246195,-501.14,9.999e-05,2]
[343617400,1732750246206,-501.14,9.999e-05,2]
[343617401,1732750246216,-501.14,9.999e-05,2]
[343617402,1732750246225,-501.14,9.999e-05,2]
[343617403,1732750246235,-501.14,9.999e-05,2]
[343617404,1732750246246,-501.14,9.999e-05,2]
[343617405,1732750246255,-501.14,9.999e-05,2]
[343617406,1732750246266,-501.14,9.999e-05,2]
[343617407,1732750246277,-500.0,9.999e-05,2]
[343617408,1732750246287,-205.06378332,9.999e-05,2]
[343617409,1732750246299,-296.07621668,9.999e-05,2]
[343617410,1732750246308,-500.0,9.999e-05,2]
[343617411,1732750246321,-501.14,9.999e-05,2]
[343617412,1732750246330,-226.11,9.999e-05,2]
[343617414,1732750246340,-501.14,9.999e-05,2]
[343617416,1732750246350,-501.14,9.999e-05,2]
[343617418,1732750246360,-501.14,9.999e-05,2]
[343617420,1732750246369,-259.55378532,9.999e-05,2]
[343617423,1732750246389,-322.58621468,9.999e-05,2]
[343617425,1732750246399,-501.14,9.999e-05,2]
[343617427,1732750246410,-501.14,9.999e-05,2]
[343617428,1732750246419,-501.14,9.999e-05,2]
[343617430,1732750246429,-501.14,9.999e-05,2]
[343617431,1732750246439,-501.14,9.999e-05,2]
[343617432,1732750246449,-501.14,9.999e-05,2]
[343617433,1732750246458,-501.14,9.999e-05,2]
[343617434,1732750246468,-501.14,9.999e-05,2]
[343617435,1732750246478,-501.14,9.999e-05,2]
[343617436,1732750246488,-501.31,9.999e-05,2]
[343617437,1732750246497,-500.0,9.999e-05,2]
[343617438,1732750246506,-500.0,9.999e-05,2]
[343617439,1732750246516,-500.0,9.999e-05,2]
[343617440,1732750246525,-500.0,9.999e-05,2]
[343617441,1732750246535,-244.29,9.999e-05,2]
[343617442,1732750246544,-500.0,9.999e-05,2]
[343617443,1732750246553,-500.0,9.999e-05,2]
[343617444,1732750246563,-500.0,9.999e-05,2]
[343617445,1732750246575,-500.0,9.999e-05,2]
[343617446,1732750246584,-500.0,9.999e-05,2]
[343617447,1732750246593,-500.0,9.999e-05,2]
[343617448,1732750246603,-179.25,9.999e-05,2]
[343617449,1732750246612,-500.0,9.999e-05,2]
[343617450,1732750246622,-500.0,9.999e-05,2]
[343617451,1732750246632,-500.0,9.999e-05,2]
[343617452,1732750246641,-500.0,9.999e-05,2]
[343617453,1732750246653,-500.0,9.999e-05,2]
[343617454,1732750246663,-500.0,9.999e-05,2]
[343617455,1732750246674,-500.0,9.999e-05,2]
[343617456,1732750246684,-377.75,9.999e-05,2]
[343617457,1732750246694,-246.36220258,9.999e-05,2]
[343617458,1732750246703,-500.0,9.999e-05,2]
[343617459,1732750246713,-500.0,9.999e-05,2]
[343617460,1732750246723,-500.0,9.999e-05,2]
[343617461,1732750246734,-244.51698324,9.999e-05,2]
[343617465,1732751060548,-269.25,0.00016658,30]
[343617466,1732751060582,-269.25,0.00019242,30]
[343617467,1732751060615,-269.25,0.00021826,30]
[343617468,1732751060646,-4606.90702,0.00023189,30]
[343617469,1732751060673,-2000.0,0.00024184,31]
[343617470,1732751060701,-269.25,0.0002441,30]
[343617471,1732751060738,-916.09298,0.00026,120]
[343617473,1732751389084,1330.7040693,0.00025999,120]
[343617490,1732751432209,-881.87933667,8.219e-05,2]
[343617491,1732751432332,-1107.40066333,8.219e-05,2]
[343617492,1732751432342,-165.45,8.881e-05,2]
[343617493,1732751432352,-1000.0,8.906e-05,2]
[343617494,1732751432363,-2202.13408213,8.906e-05,2]
[343617495,1732751432373,-500.21,8.93e-05,2]
[343617496,1732751432383,-650.21,8.934e-05,2]
[343617497,1732751432392,-250.0,8.991e-05,2]
[343617498,1732751432402,-493.01,9.108e-05,2]
[343617499,1732751432412,-167.26,9.344e-05,2]
[343617500,1732751432421,-2202.13408211,9.402e-05,2]
[343617501,1732751432431,-150.0,9.425e-05,2]
[343617502,1732751432441,-300.0,9.5e-05,2]
[343617503,1732751432451,-400.0,9.589e-05,2]
[343617504,1732751432460,-150.99,9.67e-05,2]
[343617505,1732751432470,-686.3812,9.798e-05,2]
[343617506,1732751432480,-28806.2835,9.798e-05,2]
[343617507,1732751432491,-2500.0,9.799e-05,2]
[343617508,1732751432502,-150.0,9.854e-05,2]
[343617509,1732751432513,-4513.0,9.863e-05,2]
[343617510,1732751432523,-1100.2473,9.879e-05,2]
[343617511,1732751432534,-150.0,9.897e-05,2]
[343617512,1732751432543,-500.0,9.898e-05,2]
[343617513,1732751432554,-500.0,9.898e-05,2]
[343617514,1732751432563,-500.0,9.898e-05,2]
[343617515,1732751432573,-500.0,9.898e-05,2]
[343617516,1732751432582,-523.51,9.898e-05,2]
[343617517,1732751432593,-508.28,9.898e-05,2]
[343617518,1732751432602,-500.0,9.898e-05,2]
[343617519,1732751432614,-500.0,9.898e-05,2]
[343617520,1732751432624,-443.47812916,9.898e-05,2]
[343617521,1732751432634,-500.0,9.898e-05,2]
[343617522,1732751432643,-500.0,9.898e-05,2]
[343617523,1732751432652,-500.0,9.898e-05,2]
[343617524,1732751432661,-615.36,9.898e-05,2]
[343617525,1732751432671,-500.0,9.898e-05,2]
[343617526,1732751432680,-500.0,9.898e-05,2]
[343617527,1732751432690,-500.0,9.898e-05,2]
[343617528,1732751432699,-500.0,9.898e-05,2]
[343617530,1732751432709,-500.0,9.898e-05,2]
[343617532,1732751432718,-500.0,9.898e-05,2]
[343617534,1732751432728,-234.41,9.898e-05,2]
[343617536,1732751432738,-500.0,9.898e-05,2]
[343617538,1732751432747,-500.0,9.898e-05,2]
[343617540,1732751432757,-500.0,9.898e-05,2]
[343617542,1732751432767,-500.0,9.898e-05,2]
[343617544,1732751432776,-500.0,9.898e-05,2]
[343617545,1732751432785,-500.0,9.898e-05,2]
[343617547,1732751432794,-500.0,9.898e-05,2]
[343617548,1732751432805,-500.0,9.898e-05,2]
[343617549,1732751432814,-500.0,9.898e-05,2]
[343617550,1732751432824,-138.77052699,9.898e-05,2]
[343617552,1732751432853,-361.22947301,9.898e-05,2]
[343617554,1732751432865,-500.0,9.898e-05,2]
[343617556,1732751432874,-419.26462263,9.898e-05,2]
[343617558,1732751432885,-309.01,9.898e-05,2]
[343617561,1732751432908,-478.98537737,9.898e-05,2]
[343617563,1732751432918,-500.0,9.898e-05,2]
[343617565,1732751432927,-500.0,9.898e-05,2]
[343617567,1732751432937,-500.0,9.898e-05,2]
[343617569,1732751432946,-500.0,9.898e-05,2]
[343617570,1732751432955,-500.0,9.898e-05,2]
[343617571,1732751432965,-500.0,9.898e-05,2]
[343617572,1732751432975,-500.0,9.898e-05,2]
[343617573,1732751432984,-371.03,9.898e-05,2]
[343617574,1732751432994,-500.0,9.898e-05,2]
[343617575,1732751433004,-500.0,9.898e-05,2]
[343617576,1732751433014,-500.0,9.898e-05,2]
[343617577,1732751433024,-500.0,9.898e-05,2]
[343617578,1732751433034,-500.0,9.898e-05,2]
[343617579,1732751433044,-500.0,9.898e-05,2]
[343617580,1732751433054,-500.0,9.898e-05,2]
[343617581,1732751433063,-500.0,9.898e-05,2]
[343617582,1732751433073,-500.0,9.898e-05,2]
[343617583,1732751433083,-500.0,9.898e-05,2]
[343617584,1732751433092,-500.0,9.898e-05,2]
[343617585,1732751433103,-500.0,9.898e-05,2]
[343617586,1732751433115,-500.0,9.898e-05,2]
[343617587,1732751433124,-500.0,9.898e-05,2]
[343617588,1732751433134,-500.0,9.898e-05,2]
[343617589,1732751433143,-500.0,9.898e-05,2]
[343617590,1732751433153,-500.0,9.898e-05,2]
[343617591,1732751433163,-500.0,9.898e-05,2]
[343617592,1732751433172,-263.65865929,9.898e-05,2]
[343617593,1732751433182,-500.0,9.898e-05,2]
[343617594,1732751433192,-500.0,9.898e-05,2]
[343617595,1732751433202,-500.0,9.898e-05,2]
[343617596,1732751433211,-500.0,9.898e-05,2]
[343617597,1732751433221,-500.0,9.898e-05,2]
[343617598,1732751433230,-500.0,9.898e-05,2]
[343617599,1732751433240,-500.0,9.898e-05,2]
[343617600,1732751433250,-500.0,9.898e-05,2]
[343617601,1732751433259,-180.8449992,9.898e-05,2]
[343617602,1732751433269,-500.0,9.898e-05,2]
[343617603,1732751433278,-500.0,9.898e-05,2]
[343617604,1732751433288,-525.25,9.898e-05,2]
[343617605,1732751433297,-500.0,9.898e-05,2]
[343617606,1732751433307,-500.0,9.898e-05,2]
[343617607,1732751433316,-500.0,9.898e-05,2]
[343617608,1732751433325,-500.0,9.898e-05,2]
[343617609,1732751433334,-541.88,9.898e-05,2]
[343617610,1732751433344,-500.0,9.898e-05,2]
[343617611,1732751433354,-500.0,9.898e-05,2]
[343617612,1732751433366,-320.88,9.898e-05,2]
[343617613,1732751433375,-500.0,9.898e-05,2]
[343617614,1732751433384,-500.0,9.898e-05,2]
[343617615,1732751433395,-585.41,9.898e-05,2]
[343617616,1732751433405,-500.0,9.898e-05,2]
[343617617,1732751433414,-500.0,9.898e-05,2]
[343617618,1732751433424,-169.49,9.898e-05,2]
[343617619,1732751433433,-500.0,9.898e-05,2]
[343617620,1732751433442,-500.0,9.898e-05,2]
[343617621,1732751433451,-500.0,9.898e-05,2]
[343617622,1732751433461,-593.85,9.898e-05,2]
[343617623,1732751433470,-2202.13408211,9.898e-05,2]
[343617624,1732751433480,-500.0,9.898e-05,2]
[343617625,1732751433493,-500.0,9.898e-05,2]
[343617626,1732751433505,-500.0,9.898e-05,2]
[343617627,1732751433515,-500.0,9.898e-05,2]
[343617628,1732751433524,-39.55482665,9.898e-05,2]
[343617629,1732751433542,-460.44517335,9.898e-05,2]
[343617630,1732751433552,-500.0,9.898e-05,2]
[343617631,1732751433561,-500.0,9.898e-05,2]
[343617632,1732751433570,-500.0,9.898e-05,2]
[343617633,1732751433580,-500.0,9.898e-05,2]
[343617634,1732751433590,-500.0,9.898e-05,2]
[343617635,1732751433599,-500.0,9.898e-05,2]
[343617636,1732751433610,-500.0,9.898e-05,2]
[343617637,1732751433620,-490.13664203,9.898e-05,2]
[343617638,1732751433880,2005.1219429,0.00025999,120]
[343617650,1732751438400,-723.9091,9.798e-05,2]
[343617651,1732751438510,-26.75891784,9.798e-05,2]
[343617652,1732751438521,-1749.33198216,9.798e-05,2]
[343617653,1732751438531,-9.86335797,9.898e-05,2]
[343617654,1732751438541,-500.0,9.898e-05,2]
[343617655,1732751438550,-500.0,9.898e-05,2]
[343617656,1732751438559,-500.0,9.898e-05,2]
[343617657,1732751438570,-433.66743143,9.898e-05,2]
[343617658,1732751438585,-500.0,9.898e-05,2]
[343617659,1732751438594,-500.0,9.898e-05,2]
[343617660,1732751438604,-500.0,9.898e-05,2]
[343617661,1732751438614,-500.0,9.898e-05,2]
[343617662,1732751438624,-500.0,9.898e-05,2]
[343617663,1732751438634,-592.14,9.898e-05,2]
[343617664,1732751438643,-500.0,9.898e-05,2]
[343617665,1732751438653,-500.0,9.898e-05,2]
[343617666,1732751438663,-610.46301676,9.898e-05,2]
[343617667,1732751438672,-1278.89,9.898e-05,2]
[343617668,1732751438682,-500.0,9.898e-05,2]
[343617669,1732751438692,-500.0,9.898e-05,2]
[343617670,1732751438701,-699.87,9.898e-05,2]
[343617671,1732751438712,-635.52,9.898e-05,2]
[343617672,1732751438722,-500.0,9.898e-05,2]
[343617673,1732751438732,-500.0,9.898e-05,2]
[343617674,1732751438742,-431.89809493,9.898e-05,2]
[343617675,1732751438751,-500.0,9.898e-05,2]
[343617676,1732751438761,-500.0,9.898e-05,2]
[343617677,1732751438771,-524.90012756,9.898e-05,2]
[343617678,1732751438781,-500.0,9.898e-05,2]
[343617679,1732751438791,-500.0,9.898e-05,2]
[343617680,1732751438801,-3132.6949,9.898e-05,2]
[343617681,1732751438810,-12041.37100716,9.898e-05,2]
[343617682,1732751438890,-881.87398568,9.898e-05,2]
[343617683,1732751438902,-920.21589874,9.898e-05,2]
[343617684,1732751438914,-7371.14100329,9.898e-05,2]
[343617685,1732751438925,-9999.97925,9.898e-05,2]
[343617692,1732751440507,-625.336948,9.898e-05,2]
[343617693,1732751440629,-300.0,9.898e-05,2]
[343617700,1732751445107,-411.09,9.898e-05,2]